bitfinex/quotes_ETHUSD_20241003
["timestamp","ask_amount","ask_price","bid_price","bid_amount"]
[1727961304279,4.26912,2342.4,2341.9,4.26998]
[1727961304564,0.0072,2342.3,2341.2,6.21433306]
[1727961304771,0.0072,2341.5,2341.1,4.27141]
[1727961304927,0.0072,2341.3,2341.0,4.27167]
[1727961305123,0.0072,2341.1,2340.9,4.27171]
[1727961305325,0.0072,2341.1,2341.0,4.27167]
[1727961305964,0.0072,2341.1,2341.0,5.126508]
[1727961306263,0.0072,2341.6,2341.3,4.27113]
[1727961306464,0.4781,2342.3,2341.7,4.2704]
[1727961306465,0.0072,2341.8,2341.7,4.2704]
[1727961306782,0.0072,2341.8,2341.7,4.35151362]
[1727961306926,0.0072,2341.8,2341.7,4.35579696]
[1727961307277,0.0072,2342.0,2341.9,4.27003]
[1727961308622,0.0072,2342.0,2341.6,4.27044]
[1727961308893,0.4781,2342.3,2341.8,4.27021]
[1727961309123,0.4781,2342.3,2342.0,4.26984]
[1727961309307,0.4781,2342.3,2342.0,8.53957]
[1727961309576,0.5,2342.5,2342.3,4.26916]
[1727961309743,0.5,2342.5,2342.4,4.26912]
[1727961309945,0.5072,2342.5,2342.4,4.26912]
[1727961310279,0.5072,2342.5,2342.3,4.26927]
[1727961310462,0.5072,2342.5,2342.4,4.26912]
[1727961311049,0.5072,2342.5,2342.3,4.26922]
[1727961311783,0.5072,2342.5,2342.2,4.26948]
[1727961311996,0.5072,2342.5,2341.9,4.26997]
[1727961312140,0.5072,2342.5,2341.1,4.27135]
[1727961312141,4.27059,2341.6,2341.1,4.27135]
[1727961312342,0.4781,2342.1,2340.9,4.2717]
[1727961312343,0.0072,2341.2,2340.9,4.2717]
[1727961312572,0.4781,2341.5,2340.8,0.005]
[1727961312573,0.0072,2341.0,2340.8,0.005]
[1727961313038,0.0072,2341.0,2340.8,4.27696]
[1727961313239,0.0072,2341.0,2340.8,0.005]
[1727961313737,4.2789,2341.0,2340.8,0.005]
[1727961313938,0.0072,2341.0,2340.8,0.005]
[1727961314395,4.74996,2340.9,2340.8,0.005]
[1727961314956,7.74996,2340.9,2340.8,0.005]
[1727961315669,13.72769306,2340.9,2340.8,0.005]
[1727961315995,4.27376,2339.9,2339.4,4.27453]
[1727961316292,4.2734,2340.1,2339.5,4.37211097]
[1727961316293,4.27351,2340.0,2339.5,4.37211097]
[1727961316498,4.2737,2339.9,2339.5,0.09770097]
[1727961316652,4.2734,2340.1,2339.5,4.37201097]
[1727961316860,4.2737,2339.9,2339.5,4.37201097]
[1727961317076,4.2738,2339.9,2339.5,0.09770097]
[1727961317398,4.2737,2339.9,2339.5,0.09770097]
[1727961317612,4.2737,2339.9,2339.3,0.005]
[1727961317613,4.2746,2339.4,2339.3,0.005]
[1727961317914,4.27418,2339.7,2339.3,0.005]
[1727961318064,4.27434,2339.6,2339.3,0.005]
[1727961318395,0.4731,2340.0,2339.5,4.27427]
[1727961318610,0.4731,2340.0,2339.3,0.005]
[1727961318757,4.27415,2339.7,2339.3,0.005]
[1727961319157,4.27427,2339.6,2339.3,0.005]
[1727961319387,4.27379,2339.9,2339.3,0.005]
[1727961319599,4.27379,2339.9,2339.3,4.27966]
[1727961319897,4.27379,2339.9,2339.4,4.27449]
[1727961320507,0.4731,2340.0,2339.5,4.27441]
[1727961320717,4.27344,2340.1,2339.6,4.27421]
[1727961321010,7.74617,2340.3,2339.7,4.27405]
[1727961321011,4.27316,2340.2,2339.7,4.27405]
[1727961321166,0.5,2340.0,2339.9,4.27368]
[1727961321591,0.5,2340.0,2339.6,4.27411]
[1727961321775,0.5072,2340.0,2339.5,5.06949]
[1727961321995,0.0072,2339.7,2339.5,5.06949]
[1727961322319,0.0072,2339.7,2339.6,4.27423]
[1727961322813,0.0072,2339.7,2339.6,4.35970985]
[1727961322979,0.0072,2339.7,2339.6,4.27423]
[1727961323307,0.0072,2339.7,2339.5,4.27432]
[1727961323689,0.0072,2339.7,2339.3,4.27972]
[1727961324229,0.0072,2339.7,2339.3,0.005]
[1727961324230,4.28127,2339.7,2339.3,0.005]
[1727961324410,4.27401,2339.8,2339.3,4.27975]
[1727961324411,0.0072,2339.4,2339.3,4.27975]
[1727961324582,0.0072,2339.4,2339.3,0.005]
[1727961324986,0.0072,2339.4,2339.3,4.27978]
[1727961325253,0.0072,2339.4,2339.3,5.135253]
[1727961326027,0.0072,2339.6,2339.3,0.005]
[1727961326235,0.0072,2339.4,2339.3,0.005]
[1727961326591,0.0072,2339.4,2339.3,4.27978]
[1727961326791,0.0072,2339.4,2339.3,0.005]
[1727961327419,0.0072,2339.4,2339.3,4.27978]
[1727961327603,0.0072,2339.4,2339.3,5.22928588]
[1727961328023,0.0072,2339.4,2339.3,5.9292002]
[1727961328330,0.0072,2339.7,2339.6,4.27423]
[1727961328529,4.77352,2340.0,2339.7,4.27389]
[1727961328530,0.5,2340.0,2339.7,4.27389]
[1727961328742,0.0072,2339.8,2339.7,4.27389]
[1727961329232,0.0072,2339.8,2339.4,4.27455]
[1727961329407,0.0072,2339.8,2339.6,4.27415]
[1727961329602,0.0072,2339.8,2339.7,4.27405]
[1727961329837,0.0072,2339.8,2339.6,4.27415]
[1727961330008,0.0072,2339.8,2339.7,4.27405]
[1727961331330,0.0072,2339.8,2339.4,6.02063008]
[1727961331542,0.0072,2339.8,2339.4,4.27451]
[1727961331921,0.0072,2339.8,2339.5,0.07041616]
[1727961332323,0.0072,2339.8,2339.4,4.27458]
[1727961332522,8.55521,2339.8,2339.6,0.0715307]
[1727961332754,4.75426,2339.8,2339.3,0.005]
[1727961332914,4.74706,2339.8,2339.7,0.0715307]
[1727961333121,4.75426,2339.8,2339.3,4.27962]
[1727961333314,4.75426,2339.8,2339.7,0.07158006]
[1727961333521,0.4803,2339.8,2339.4,4.27443]
[1727961334018,0.0072,2339.8,2339.5,4.34599006]
[1727961334217,0.5,2340.0,2339.5,0.93414107]
[1727961334527,0.5,2340.0,2339.7,4.27403]
[1727961335015,0.5,2340.0,2339.8,0.07158006]
[1727961335219,0.5,2340.0,2339.7,4.27403]
[1727961335433,0.5,2340.0,2339.9,0.07158006]
[1727961335857,0.5,2340.0,2339.6,4.27409]
[1727961336064,0.5,2340.0,2339.9,0.07158006]
[1727961336226,0.5,2340.0,2339.7,4.27404]
[1727961336562,0.5,2340.0,2339.9,0.07158006]
[1727961337077,4.7735,2340.0,2339.9,0.07158006]
[1727961337221,4.7807,2340.0,2339.9,0.07158006]
[1727961337773,4.27399,2339.8,2339.4,4.2745]
[1727961337919,4.27371,2339.9,2339.5,4.27436]
[1727961338270,0.5072,2340.0,2339.5,4.27436]
[1727961338271,0.0072,2339.6,2339.5,0.06686073]
[1727961338469,0.0072,2339.6,2339.3,0.005]
[1727961338633,0.5,2340.0,2339.5,4.33888473]
[1727961338834,0.5,2340.0,2339.9,4.27368]
[1727961339072,0.5,2340.0,2339.8,4.27386]
[1727961339289,0.5,2339.9,2339.8,4.27386]
[1727961339569,0.5072,2339.9,2339.6,4.2741]
[1727961339775,0.0072,2339.7,2339.6,8.54824]
[1727961340271,0.0072,2339.7,2339.6,4.2741]
[1727961341150,0.0072,2339.7,2339.5,4.2744]
[1727961341335,0.0072,2339.7,2339.6,4.27423]
[1727961341887,0.4731,2340.7,2340.3,4.2728]
[1727961342035,4.74533,2340.7,2340.3,4.2728]
[1727961342386,4.27328,2340.2,2339.7,5.06812]
[1727961342587,4.27328,2340.2,2339.4,4.27458]
[1727961342588,4.27384,2339.9,2339.4,4.2745]
[1727961342874,0.4731,2340.0,2339.3,9.3498]
[1727961343080,4.27388,2339.8,2339.3,0.005]
[1727961343372,0.4731,2340.0,2339.4,4.27445]
[1727961343373,4.74672,2340.0,2339.4,4.27445]
[1727961343576,4.27394,2339.8,2339.3,4.27966]
[1727961343776,0.008,2339.5,2339.4,4.27447]
[1727961343981,0.008,2339.5,2339.3,4.27973]
[1727961344164,0.008,2339.5,2339.4,4.2746]
[1727961345670,0.008,2339.5,2339.3,4.2797]
[1727961345879,0.008,2339.5,2339.4,4.2746]
[1727961346032,0.008,2339.5,2339.3,4.27976]
[1727961346236,0.008,2339.5,2339.3,8.55442]
[1727961346641,0.008,2339.5,2339.4,4.2746]
[1727961349978,0.008,2339.5,2339.4,5.21550716]
[1727961350190,0.008,2339.5,2339.3,0.005]
[1727961350508,4.7477,2339.4,2339.3,0.005]
[1727961351381,4.28255,2339.5,2339.3,0.005]
[1727961352161,4.2746,2339.4,2339.3,0.005]
[1727961353092,4.2746,2339.4,2339.3,0.04958667]
[1727961353312,4.2746,2339.4,2339.3,0.005]
[1727961353780,4.28255,2339.5,2339.3,0.005]
[1727961353985,4.28255,2339.5,2339.4,4.2746]
[1727961353986,0.008,2339.5,2339.4,4.2746]
[1727961354161,0.008,2339.5,2339.3,9.33566]
[1727961354365,0.008,2339.5,2339.4,0.0432632]
[1727961356513,0.008,2339.5,2339.4,4.3178632]
[1727961356666,0.008,2339.5,2339.4,0.0432632]
[1727961356866,0.008,2339.5,2339.4,4.3178632]
[1727961357089,0.008,2339.5,2339.4,4.40328145]
[1727961357417,0.008,2339.5,2339.4,4.3178632]
[1727961357763,0.008,2339.5,2339.4,0.0432632]
[1727961358228,4.28241,2339.5,2339.4,0.0432632]
[1727961358381,4.27441,2339.5,2339.4,0.0432632]
[1727961358733,4.28241,2339.5,2339.4,0.0432632]
[1727961359078,0.008,2339.5,2339.4,0.0432632]
[1727961359525,4.28241,2339.5,2339.4,0.0432632]
[1727961359831,0.008,2339.5,2339.4,0.0432632]
[1727961360582,4.28241,2339.5,2339.4,0.0432632]
[1727961360782,5.16788572,2339.5,2339.4,0.0432632]
[1727961360977,5.16788572,2339.5,2339.3,0.005]
[1727961360978,5.61062358,2339.5,2339.3,0.005]
[1727961361181,5.60281358,2339.4,2339.3,0.005]
[1727961361636,5.16004397,2339.4,2339.3,0.005]
[1727961361843,4.2746,2339.4,2339.3,0.005]
[1727961362052,5.60281358,2339.4,2339.3,0.005]
[1727961362350,7.7477,2339.4,2339.3,0.005]
[1727961362552,9.96004245,2339.4,2339.3,0.005]
[1727961362901,10.40200285,2339.4,2339.3,0.005]
[1727961363138,9.9595202,2339.4,2339.3,0.005]
[1727961363309,7.7477,2339.4,2339.3,0.005]
[1727961364117,7.7477,2339.4,2337.8,4.27751]
[1727961364118,4.27727,2338.0,2337.6,0.89506297]
[1727961364319,0.008,2337.7,2337.6,1.14989152]
[1727961364534,0.008,2337.7,2337.6,4.39465297]
[1727961364860,0.008,2337.7,2337.6,0.11676297]
[1727961365000,0.008,2337.7,2337.6,4.39465297]
[1727961365203,0.008,2337.7,2337.6,0.98452427]
[1727961365558,0.008,2337.7,2337.6,0.11676297]
[1727961365741,0.008,2337.7,2337.6,4.39465297]
[1727961365905,0.008,2337.7,2337.6,10.64181355]
[1727961366110,0.008,2338.3,2338.1,4.27685]
[1727961366311,0.008,2338.3,2338.1,5.42896058]
[1727961366623,1.32480844,2339.2,2338.1,5.42896058]
[1727961366624,0.008,2338.6,2338.1,9.70584058]
[1727961366814,0.008,2338.4,2338.3,4.27661]
[1727961367020,0.008,2338.6,2338.3,5.25079674]
[1727961367321,0.008,2338.8,2338.5,0.8262]
[1727961367633,0.008,2338.6,2338.5,0.8262]
[1727961367820,0.008,2338.6,2338.5,5.10244]
[1727961368299,0.008,2338.6,2338.5,0.8262]
[1727961368504,0.008,2338.6,2338.3,5.25078674]
[1727961368748,0.008,2338.6,2338.3,0.97418674]
[1727961369053,0.008,2338.6,2338.4,4.27638]
[1727961369202,0.008,2338.6,2338.5,0.52505667]
[1727961369546,0.008,2338.6,2338.2,0.7802]
[1727961369700,0.008,2338.6,2338.3,0.02390817]
[1727961369902,0.008,2338.6,2338.5,4.27624]
[1727961370107,0.008,2338.8,2338.5,4.27619]
[1727961370308,0.008,2338.8,2338.6,4.27595]
[1727961370568,0.008,2338.8,2338.7,5.04697]
[1727961370868,2.23451126,2339.7,2338.7,0.7711]
[1727961370869,4.27507,2339.2,2338.7,0.7711]
[1727961371009,4.27507,2339.2,2338.7,5.04689]
[1727961371010,0.008,2339.1,2338.7,5.04689]
[1727961371212,0.008,2339.1,2338.5,0.86201328]
[1727961371213,0.008,2338.9,2338.5,0.86201328]
[1727961371439,0.008,2338.7,2338.4,0.789]
[1727961371654,4.28399,2338.7,2338.1,4.27687]
[1727961371803,0.008,2338.7,2338.2,0.855391]
[1727961372124,0.008,2338.7,2338.5,4.27623]
[1727961372326,0.008,2338.7,2338.4,4.27642]
[1727961372543,0.008,2338.5,2338.1,0.7665]
[1727961372849,0.008,2338.3,2338.2,4.27679]
[1727961373315,0.008,2338.3,2338.1,9.32033]
[1727961373514,0.008,2338.3,2338.1,0.7665]
[1727961373749,0.008,2338.3,2337.7,0.7546]
[1727961373914,4.27735,2337.9,2337.6,0.11676297]
[1727961374269,4.74572,2337.8,2337.6,0.11676297]
[1727961374555,4.27737,2337.9,2337.6,0.11676297]
[1727961374771,4.27691,2338.2,2337.8,4.27752]
[1727961374915,4.27698,2338.1,2337.8,0.5148883]
[1727961375113,4.28467,2338.3,2337.6,0.87136297]
[1727961375366,0.008,2338.3,2337.7,4.27769]
[1727961375571,0.008,2338.3,2337.9,4.27733]
[1727961375867,0.008,2338.3,2338.1,4.27697]
[1727961376167,0.008,2338.6,2338.3,4.27647]
[1727961376515,0.008,2338.6,2338.2,1.182297]
[1727961376722,0.008,2338.6,2338.5,4.27624]
[1727961377024,1.35130563,2339.3,2338.6,4.27606]
[1727961377025,0.008,2338.8,2338.6,4.27606]
[1727961377421,0.008,2338.8,2338.3,9.70554058]
[1727961377630,0.008,2338.6,2338.2,5.03133]
[1727961377817,0.008,2338.6,2338.3,0.503133]
[1727961378141,0.008,2338.6,2338.3,4.779733]
[1727961378551,4.27578,2338.8,2338.3,4.779733]
[1727961379215,4.27578,2338.8,2338.3,0.503133]
[1727961379415,4.27599,2338.7,2338.2,5.03136]
[1727961379661,4.27578,2338.8,2338.2,5.03136]
[1727961379865,0.4681,2338.7,2338.2,0.7546]
[1727961380019,4.27612,2338.6,2338.0,4.27701]
[1727961380214,4.74398,2338.7,2338.2,4.27666]
[1727961380417,4.27615,2338.6,2338.1,4.27692]
[1727961381065,4.27654,2338.4,2337.9,4.2773]
[1727961381394,4.27632,2338.5,2338.0,4.27707]
[1727961381395,4.27636,2338.5,2338.0,4.27707]
[1727961381607,4.27644,2338.4,2337.9,4.27733]
[1727961381756,4.27619,2338.6,2338.1,4.27689]
[1727961381957,4.27619,2338.6,2338.0,4.27698]
[1727961382180,4.27637,2338.5,2338.0,4.27698]
[1727961382390,4.27625,2338.5,2338.0,4.27698]
[1727961382693,4.27606,2338.6,2338.1,4.27688]
[1727961382879,4.27645,2338.4,2337.9,5.208637]
[1727961383222,4.74484,2338.3,2337.6,4.39456297]
[1727961383381,4.27737,2337.9,2337.6,0.11676297]
[1727961383992,8.55484,2337.9,2337.6,0.11676297]
[1727961384319,4.74471,2338.3,2337.6,0.11676297]
[1727961384320,4.7458,2337.7,2337.6,0.11676297]
[1727961384516,4.27768,2337.8,2337.6,0.11676297]
[1727961384729,4.27736,2337.9,2337.6,0.11676297]
[1727961384882,4.27728,2338.0,2337.6,0.11676297]
[1727961385220,4.27692,2338.2,2337.6,0.11676297]
[1727961385221,0.008,2337.7,2337.6,4.83462427]
[1727961385374,0.008,2337.9,2337.8,4.27752]
[1727961385574,4.74427,2338.6,2337.8,4.27752]
[1727961385575,0.008,2338.1,2337.8,0.08553659]
[1727961385922,0.008,2338.1,2338.0,4.27715]
[1727961386126,0.008,2338.1,2337.7,9.70651058]
[1727961386421,4.27734,2337.9,2337.6,0.11676297]
[1727961386581,0.008,2337.7,2337.6,0.11676297]
[1727961387619,0.008,2337.7,2337.6,4.39465297]
[1727961387927,0.008,2337.8,2337.7,4.2777]
[1727961388081,0.008,2337.8,2337.7,5.65121871]
[1727961389423,0.008,2337.8,2337.7,5.5727283]
[1727961389799,0.008,2337.8,2337.6,4.39465297]
[1727961389994,0.008,2337.8,2337.7,4.2777]
[1727961390929,0.008,2337.8,2337.6,4.39452297]
[1727961391098,0.008,2337.8,2337.6,0.11676297]
[1727961391296,0.008,2337.8,2337.6,4.39457297]
[1727961391524,0.008,2337.8,2337.7,4.2777]
[1727961392226,0.008,2337.8,2337.6,0.11676297]
[1727961392556,0.008,2337.8,2337.6,4.39463297]
[1727961393049,0.008,2337.8,2337.6,0.11676297]
[1727961393340,0.008,2337.8,2337.6,4.39464297]
[1727961393547,0.008,2337.8,2337.6,0.11676297]
[1727961393841,0.008,2337.8,2337.7,4.2777]
[1727961393998,0.008,2337.8,2337.7,4.32947328]
[1727961394201,0.008,2337.8,2337.7,4.2777]
[1727961394422,0.008,2337.8,2337.7,4.32947328]
[1727961394645,0.008,2337.8,2337.7,4.2777]
[1727961395402,0.008,2337.8,2337.7,4.86841639]
[1727961395714,4.2777,2337.7,2337.6,0.11676297]
[1727961395914,4.7458,2337.7,2337.6,0.11676297]
[1727961396139,7.7458,2337.7,2337.6,0.11676297]
[1727961396345,9.0679852,2337.7,2337.6,0.11676297]
[1727961396643,8.62795336,2337.7,2337.6,0.11676297]
[1727961397155,4.7458,2337.7,2337.6,0.11676297]
[1727961398402,7.7458,2337.7,2337.6,0.11676297]
[1727961399703,4.7458,2337.7,2337.6,0.11676297]
[1727961401107,7.27807,2337.5,2337.4,0.005]
[1727961401304,8.16685039,2337.5,2337.4,0.005]
[1727961401549,7.28607,2337.5,2337.4,0.005]
[1727961401709,4.28607,2337.5,2337.4,0.005]
[1727961402240,4.63747,2337.5,2337.4,0.005]
[1727961406082,0.008,2337.5,2337.4,0.005]
[1727961406579,4.28607,2337.5,2337.4,0.005]
[1727961409013,7.28607,2337.5,2337.4,0.005]
[1727961409173,7.63747,2337.5,2337.4,0.005]
[1727961409497,8.51825039,2337.5,2337.4,0.005]
[1727961409876,7.63747,2337.5,2337.4,0.005]
[1727961410196,8.51825039,2337.5,2337.4,0.005]
[1727961410769,8.51825039,2337.5,2335.5,4.28158]
[1727961410770,3.0,2337.4,2335.3,0.8195]
[1727961410984,3.0,2337.4,2334.6,0.10735669]
[1727961410985,0.008,2335.7,2334.6,0.10735669]
[1727961411209,0.008,2335.7,2334.0,2.68029786]
[1727961411210,0.72610066,2335.6,2333.1,1.38928732]
[1727961411365,0.72610066,2335.6,2332.9,2.35034453]
[1727961411366,4.28485,2333.8,2333.2,0.8195]
[1727961411567,2.0,2334.8,2333.2,0.8195]
[1727961411568,4.28369,2334.5,2333.2,0.8195]
[1727961411875,4.28267,2335.0,2333.5,4.28529]
[1727961412081,0.52419011,2334.9,2333.5,4.28529]
[1727961412402,0.87700801,2335.5,2333.1,0.45436754]
[1727961412403,4.28189,2335.5,2334.3,4.28378]
[1727961412718,0.3464,2335.6,2334.4,5.50153053]
[1727961412719,0.008,2335.4,2334.4,5.50153053]
[1727961413007,4.28246,2335.2,2334.4,0.428378]
[1727961413226,0.008,2335.4,2333.9,0.8188]
[1727961413227,4.2833,2334.7,2334.0,5.07315253]
[1727961413367,0.008,2335.4,2333.9,0.8188]
[1727961413368,4.28273,2335.0,2334.1,0.06302661]
[1727961413711,4.28273,2335.0,2333.9,10.17648253]
[1727961413712,4.28284,2334.9,2333.9,5.89195253]
[1727961413864,4.28273,2335.0,2334.0,1.09055084]
[1727961414065,4.28234,2335.2,2334.0,5.37487084]
[1727961414302,4.28234,2335.2,2334.0,5.30211625]
[1727961414481,4.28335,2334.7,2334.0,1.01766625]
[1727961414682,4.28288,2334.9,2334.1,0.69096188]
[1727961415122,4.28322,2334.7,2334.1,0.69096188]
[1727961415409,4.28252,2335.1,2334.1,4.97514188]
[1727961415613,0.008,2335.2,2334.1,4.97514188]
[1727961415614,4.28285,2334.9,2334.2,0.59928081]
[1727961415814,0.008,2335.2,2334.2,4.284]
[1727961415815,4.28254,2335.1,2334.2,4.284]
[1727961416014,4.28254,2335.1,2334.2,9.35715253]
[1727961416219,4.28254,2335.1,2334.2,9.35725253]
[1727961416367,0.008,2335.2,2334.2,5.07315253]
[1727961416368,4.28299,2334.9,2334.2,5.07315253]
[1727961416566,4.28266,2335.0,2334.2,9.35714253]
[1727961416882,4.28307,2334.8,2334.3,1.43323844]
[1727961417515,4.2838,2334.4,2334.1,0.69096188]
[1727961417870,4.2836,2334.5,2333.9,0.8188]
[1727961418120,4.28388,2334.4,2333.9,0.8188]
[1727961418553,4.28291,2334.9,2334.1,4.28418]
[1727961418554,4.28295,2334.9,2334.1,4.28418]
[1727961418757,4.2833,2334.7,2334.1,9.35733253]
[1727961418910,4.28315,2334.8,2334.2,0.93573325]
[1727961419272,4.28331,2334.7,2334.2,0.93573325]
[1727961419551,4.28277,2335.0,2334.2,0.93573325]
[1727961419751,4.28332,2334.7,2334.2,0.93573325]
[1727961419936,4.29032,2335.2,2334.3,1.02930558]
[1727961419937,4.28315,2334.8,2334.3,1.02930558]
[1727961420106,4.28313,2334.8,2334.3,1.02930558]
[1727961420310,4.28313,2334.8,2334.1,5.07315253]
[1727961420311,8.56632,2334.8,2334.1,5.07315253]
[1727961420507,8.56632,2334.8,2334.1,9.35736253]
[1727961420508,4.28324,2334.7,2334.1,9.35736253]
[1727961420735,0.008,2335.2,2334.1,5.07315253]
[1727961420945,4.28258,2335.1,2334.5,4.28344]
[1727961421150,4.2828,2335.0,2334.5,1.36403925]
[1727961421353,4.28287,2334.9,2334.5,1.36403925]
[1727961421553,0.008,2334.6,2334.5,1.36403925]
[1727961422281,0.008,2334.8,2334.5,1.36403925]
[1727961422432,4.28258,2335.1,2334.5,1.36403925]
[1727961422433,0.008,2334.6,2334.5,1.36403925]
[1727961422627,0.008,2334.7,2334.5,1.36403925]
[1727961423255,0.008,2334.7,2334.6,5.35546018]
[1727961423475,0.008,2334.8,2334.6,1.82378018]
[1727961423657,0.008,2334.8,2334.6,6.10713018]
[1727961423831,4.28076,2336.1,2335.4,4.28191]
[1727961424031,4.27904,2337.0,2334.7,0.55]
[1727961424032,4.2804,2336.3,2335.7,5.06101]
[1727961424271,4.28001,2336.5,2335.8,4.36479441]
[1727961424454,4.28001,2336.5,2335.8,4.28108]
[1727961424455,4.28011,2336.4,2335.8,4.28108]
[1727961424656,4.28001,2336.5,2335.9,4.281]
[1727961424830,0.53980326,2337.1,2335.8,5.30281469]
[1727961425028,0.53980326,2337.1,2335.7,0.7798]
[1727961425029,4.28096,2336.0,2335.7,0.7798]
[1727961425435,4.28054,2336.2,2335.7,0.7798]
[1727961425777,4.28001,2336.5,2335.7,0.7798]
[1727961425996,4.27983,2336.6,2335.9,4.28084]
[1727961426137,4.28002,2336.5,2336.0,0.428084]
[1727961426480,0.00810782,2336.0,2335.8,9.72079112]
[1727961426684,4.281,2335.9,2335.7,0.7798]
[1727961426975,0.00810782,2336.0,2335.9,4.831]
[1727961427184,0.00810782,2336.0,2335.9,5.820186]
[1727961427385,0.00810782,2336.0,2335.9,5.270186]
[1727961427527,0.00810782,2336.0,2335.9,5.820186]
[1727961428276,4.27907,2337.0,2336.1,0.55]
[1727961428569,4.27893,2337.1,2336.4,4.27996]
[1727961428887,4.27917,2336.9,2336.5,0.08393201]
[1727961429180,4.27893,2337.1,2336.6,4.2797]
[1727961429326,4.63203,2337.8,2336.8,0.799]
[1727961429327,4.27815,2337.5,2336.8,0.799]
[1727961429526,4.27783,2337.7,2337.2,4.27857]
[1727961429780,4.27685,2338.2,2336.8,0.799]
[1727961429781,4.27764,2337.8,2336.8,0.799]
[1727961430080,4.27764,2337.8,2337.2,4.27846]
[1727961430273,4.27764,2337.8,2337.3,0.08555923]
[1727961430469,4.63136,2338.2,2336.8,1.85082311]
[1727961430470,4.27783,2337.7,2336.8,5.07821]
[1727961430631,4.27865,2337.2,2336.8,0.799]
[1727961430835,4.27908,2337.0,2336.4,5.06886]
[1727961431157,4.27893,2337.1,2336.4,5.06886]
[1727961431158,4.27893,2337.1,2336.5,4.27981]
[1727961431362,8.55791,2337.1,2336.6,4.27969]
[1727961431558,0.3545,2337.5,2336.6,4.27969]
[1727961431559,0.00810782,2336.7,2336.6,4.27969]
[1727961432273,0.00810782,2336.7,2336.6,6.529136]
[1727961432572,0.00810782,2336.7,2336.6,11.96377604]
[1727961433076,4.27728,2338.0,2337.3,4.27827]
[1727961433289,8.55462,2338.0,2337.4,4.27823]
[1727961433451,4.27734,2337.9,2337.4,4.27823]
[1727961433834,4.27693,2338.2,2337.5,4.27806]
[1727961434088,4.27693,2338.2,2337.5,4.27796]
[1727961434089,4.27689,2338.2,2337.5,4.27796]
[1727961434348,0.00810782,2337.6,2337.5,4.27807]
[1727961436350,0.00810782,2337.6,2337.5,4.82807]
[1727961436550,0.00810782,2337.6,2337.5,5.61287]
[1727961437757,4.27893,2337.1,2336.3,4.28013]
[1727961437939,4.27822,2337.5,2336.2,0.7684]
[1727961437940,0.00810782,2336.4,2336.2,0.7684]
[1727961438139,0.00810782,2336.4,2335.1,4.28233]
[1727961438140,0.00810782,2336.4,2335.7,5.04967]
[1727961438442,0.3626,2336.7,2335.7,0.7684]
[1727961438443,0.00810782,2335.8,2335.7,0.7684]
[1727961439688,0.00810782,2335.8,2335.5,4.28159]
[1727961439898,0.00810782,2335.8,2335.3,5.06033]
[1727961440959,0.00810782,2335.8,2335.3,5.06027]
[1727961441289,0.00810782,2335.8,2335.3,0.7783]
[1727961441786,0.00810782,2335.8,2335.3,5.0604]
[1727961441990,0.00810782,2335.8,2335.3,5.06026]
[1727961442204,0.00810782,2335.8,2335.3,0.7783]
[1727961442508,4.28137,2335.7,2335.1,4.28236]
[1727961442649,4.2811,2335.9,2335.1,8.56472]
[1727961442650,0.00810782,2335.6,2335.1,8.56472]
[1727961442851,0.00810782,2335.6,2335.3,4.28198]
[1727961443190,0.00810782,2335.6,2335.5,4.28173]
[1727961443405,0.00810782,2335.6,2335.0,0.8223]
[1727961443693,4.28967782,2335.6,2335.0,5.10482]
[1727961443908,0.00810782,2335.6,2335.2,4.28218]
[1727961444252,0.00810782,2335.6,2335.0,0.8223]
[1727961444552,0.00810782,2335.6,2335.1,4.28236]
[1727961444771,0.00810782,2335.6,2335.0,5.730644]
[1727961444964,4.28174,2335.5,2335.0,5.10495]
[1727961445205,0.00810782,2335.6,2335.2,4.28218]
[1727961445419,0.00810782,2335.6,2335.1,4.28238]
[1727961445563,4.28975782,2335.6,2335.0,5.1049]
[1727961445993,0.00810782,2335.6,2335.1,4.28244]
[1727961446208,0.00810782,2335.6,2335.1,4.28245]
[1727961446382,4.28973782,2335.6,2335.0,9.38739]
[1727961446594,4.28971782,2335.6,2335.0,5.10482]
[1727961446814,4.28183,2335.5,2335.0,5.10482]
[1727961447010,4.28183,2335.5,2334.6,5.35545018]
[1727961447011,4.28183,2335.5,2334.8,4.28288]
[1727961447221,4.28234,2335.2,2334.6,0.7576]
[1727961447515,4.28234,2335.2,2334.6,5.04086]
[1727961448070,4.28206,2335.4,2334.7,4.2832]
[1727961448276,4.28979782,2335.6,2334.6,1.690033]
[1727961448277,4.28976782,2335.6,2334.9,4.2827]
[1727961448522,4.2822,2335.3,2334.8,4.28298]
[1727961448674,4.28201,2335.4,2334.8,4.28298]
[1727961449013,4.2821,2335.3,2334.8,4.28298]
[1727961449316,4.2821,2335.3,2334.8,4.28294]
[1727961449475,4.28980782,2335.6,2334.9,0.08564297]
[1727961449673,8.57147782,2335.6,2335.0,4.28256]
[1727961449977,4.28165,2335.6,2335.1,0.08563558]
[1727961450310,4.23984782,2335.5,2335.1,0.08563558]
[1727961450714,4.23984782,2335.5,2335.0,4.28256]
[1727961451071,4.28194,2335.4,2334.8,4.28288]
[1727961451277,0.3626,2335.8,2334.6,5.973273]
[1727961451278,4.2823,2335.2,2334.7,4.28319]
[1727961452119,4.28226,2335.3,2334.8,4.28301]
[1727961452331,4.28226,2335.3,2334.7,4.28319]
[1727961452332,4.28232,2335.2,2334.7,4.28319]